[Event "Early-Titled-Tuesday-Blitz-February-27-2024"]
[Site "Chess.com"]
[Date "2024.02.27"]
[Round "8"]
[White "Practical-Play"]
[Black "jraosam"]
[Result "1-0"]
[WhiteElo "2587"]
[BlackElo "1968"]
[TimeControl "180+1"]
[EndTime "9:23:58 PST"]
[Termination "Practical-Play won by checkmate"]

1. e4 {[%clk 0:03:00.9]} 1... d5 {[%clk 0:02:58.9]} 2. exd5 {[%clk 0:02:59.7]}
2... Qxd5 {[%clk 0:02:59.6]} 3. Nc3 {[%clk 0:02:59.3]} 3... Qd6 {[%clk
0:02:59.7]} 4. d4 {[%clk 0:02:58.3]} 4... Nf6 {[%clk 0:02:59]} 5. Nf3 {[%clk
0:02:57.1]} 5... Bg4 {[%clk 0:02:58.1]} 6. Nb5 {[%clk 0:02:50.7]} 6... Qd7
{[%clk 0:02:52.8]} 7. h3 {[%clk 0:02:45.6]} 7... Bxf3 {[%clk 0:02:50.3]} 8. Qxf3
{[%clk 0:02:46.5]} 8... c6 {[%clk 0:02:49.9]} 9. Nc3 {[%clk 0:02:40.2]} 9...
Qxd4 {[%clk 0:02:48]} 10. Be3 {[%clk 0:02:28.9]} 10... Qb4 {[%clk 0:02:46.4]}
11. O-O-O {[%clk 0:02:26.5]} 11... Nbd7 {[%clk 0:02:45.5]} 12. g4 {[%clk
0:02:11.7]} 12... h6 {[%clk 0:02:41.5]} 13. a3 {[%clk 0:01:59.8]} 13... Qa5
{[%clk 0:02:40.4]} 14. Bf4 {[%clk 0:01:51.3]} 14... O-O-O {[%clk 0:02:37.2]} 15.
Kb1 {[%clk 0:01:25.7]} 15... e6 {[%clk 0:02:32.4]} 16. Rd4 {[%clk 0:01:12.5]}
16... Qb6 {[%clk 0:02:27.1]} 17. Na4 {[%clk 0:01:09.1]} 17... Qxd4 {[%clk
0:02:23.1]} 18. Qxc6+ {[%clk 0:01:07.9]} 18... bxc6 {[%clk 0:02:15.1]} 19. Ba6#
{[%clk 0:01:06.7]} 1-0

[Event "Early-Titled-Tuesday-Blitz-February-27-2024"]
[Site "Chess.com"]
[Date "2024.02.27"]
[Round "8"]
[White "LLariMarc"]
[Black "FontVella8"]
[Result "0-1"]
[WhiteElo "2396"]
[BlackElo "2708"]
[TimeControl "180+1"]
[EndTime "9:24:19 PST"]
[Termination "FontVella8 won by resignation"]

1. d4 {[%clk 0:03:00.9]} 1... d5 {[%clk 0:02:52.8]} 2. Nf3 {[%clk 0:03:01.5]}
2... e6 {[%clk 0:02:53]} 3. Bg5 {[%clk 0:02:58.2]} 3... Nf6 {[%clk 0:02:52.3]}
4. Nbd2 {[%clk 0:02:57.7]} 4... c5 {[%clk 0:02:52.2]} 5. e3 {[%clk 0:02:57.8]}
5... Nc6 {[%clk 0:02:51.3]} 6. c3 {[%clk 0:02:55.9]} 6... cxd4 {[%clk
0:02:50.3]} 7. exd4 {[%clk 0:02:55.7]} 7... h6 {[%clk 0:02:50.7]} 8. Bh4 {[%clk
0:02:55.3]} 8... Be7 {[%clk 0:02:49.4]} 9. Bd3 {[%clk 0:02:55.5]} 9... g5 {[%clk
0:02:46.2]} 10. Bg3 {[%clk 0:02:55.6]} 10... Nh5 {[%clk 0:02:46.9]} 11. Qe2
{[%clk 0:02:45.1]} 11... g4 {[%clk 0:02:43.3]} 12. Ne5 {[%clk 0:02:44.4]} 12...
Nxg3 {[%clk 0:02:43.6]} 13. hxg3 {[%clk 0:02:43.2]} 13... Nxe5 {[%clk
0:02:43.4]} 14. Qxe5 {[%clk 0:02:28.6]} 14... Bf6 {[%clk 0:02:43.1]} 15. Qh5
{[%clk 0:02:22.4]} 15... Bg5 {[%clk 0:02:34.6]} 16. Qxg4 {[%clk 0:02:17.5]}
16... e5 {[%clk 0:02:28.8]} 17. Bb5+ {[%clk 0:02:11.8]} 17... Kf8 {[%clk
0:02:27.9]} 18. Qe2 {[%clk 0:01:57.1]} 18... exd4 {[%clk 0:02:25.1]} 19. cxd4
{[%clk 0:01:56.8]} 19... Qa5 {[%clk 0:02:17.5]} 20. f4 {[%clk 0:01:51]} 20...
Bf6 {[%clk 0:02:15.2]} 21. Qd3 {[%clk 0:01:44.6]} 21... Bg4 {[%clk 0:02:10.8]}
22. Qb3 {[%clk 0:01:18]} 22... a6 {[%clk 0:02:03.3]} 23. Bd3 {[%clk 0:01:17.3]}
23... Re8+ {[%clk 0:02:02.8]} 24. Kf1 {[%clk 0:01:06.2]} 24... Qxd2 {[%clk
0:02:02.2]} 0-1

[Event "Early-Titled-Tuesday-Blitz-February-27-2024"]
[Site "Chess.com"]
[Date "2024.02.27"]
[Round "8"]
[White "Zavgorodniy_Sergiy"]
[Black "Cheer_Down"]
[Result "1-0"]
[WhiteElo "2629"]
[BlackElo "2477"]
[TimeControl "180+1"]
[EndTime "9:24:48 PST"]
[Termination "Zavgorodniy_Sergiy won by resignation"]

1. d4 {[%clk 0:03:00.9]} 1... Nf6 {[%clk 0:02:57]} 2. c4 {[%clk 0:03:01.2]} 2...
e6 {[%clk 0:02:57]} 3. Nf3 {[%clk 0:03:01.4]} 3... b6 {[%clk 0:02:55.3]} 4. g3
{[%clk 0:03:01.1]} 4... Bb7 {[%clk 0:02:54.4]} 5. Bg2 {[%clk 0:03:01.6]} 5...
Be7 {[%clk 0:02:53.6]} 6. O-O {[%clk 0:03:01.7]} 6... d5 {[%clk 0:02:53.8]} 7.
cxd5 {[%clk 0:03:01.1]} 7... exd5 {[%clk 0:02:53.6]} 8. Nc3 {[%clk 0:03:01.5]}
8... O-O {[%clk 0:02:50.3]} 9. Bf4 {[%clk 0:03:01.4]} 9... Na6 {[%clk
0:02:50.2]} 10. Rc1 {[%clk 0:03:00.1]} 10... h6 {[%clk 0:02:47]} 11. Ne5 {[%clk
0:03:00.2]} 11... c5 {[%clk 0:02:46.7]} 12. Qa4 {[%clk 0:02:58.2]} 12... Qe8
{[%clk 0:02:39.7]} 13. Qxe8 {[%clk 0:02:57.8]} 13... Rfxe8 {[%clk 0:02:39.7]}
14. dxc5 {[%clk 0:02:58.3]} 14... Nxc5 {[%clk 0:02:35.9]} 15. Rfd1 {[%clk
0:02:55.9]} 15... Nce4 {[%clk 0:02:33.4]} 16. Nb5 {[%clk 0:02:44.2]} 16... Bc5
{[%clk 0:02:28.3]} 17. Nd3 {[%clk 0:02:37.4]} 17... Rec8 {[%clk 0:01:33.5]} 18.
Nc7 {[%clk 0:02:31]} 18... g5 {[%clk 0:01:26.5]} 19. Be5 {[%clk 0:02:21]} 19...
Ng4 {[%clk 0:01:24]} 20. Nxc5 {[%clk 0:02:14.6]} 20... Nxc5 {[%clk 0:01:10.1]}
21. Bd6 {[%clk 0:02:05.5]} 21... Rab8 {[%clk 0:00:46]} 22. Nxd5 {[%clk
0:02:05.5]} 22... Bxd5 {[%clk 0:00:44.9]} 23. Bxd5 {[%clk 0:02:03.2]} 1-0

[Event "Early-Titled-Tuesday-Blitz-February-27-2024"]
[Site "Chess.com"]
[Date "2024.02.27"]
[Round "8"]
[White "FMStan15"]
[Black "RJRA94"]
[Result "0-1"]
[WhiteElo "2065"]
[BlackElo "2303"]
[TimeControl "180+1"]
[EndTime "9:25:06 PST"]
[Termination "RJRA94 won by resignation"]

1. e4 {[%clk 0:02:50.7]} 1... d5 {[%clk 0:02:59.7]} 2. e5 {[%clk 0:02:50.1]}
2... c5 {[%clk 0:02:55]} 3. c3 {[%clk 0:02:50]} 3... Nc6 {[%clk 0:02:54.8]} 4.
d4 {[%clk 0:02:49.8]} 4... e6 {[%clk 0:02:48.2]} 5. Nf3 {[%clk 0:02:49]} 5...
Bd7 {[%clk 0:02:45.2]} 6. Bd3 {[%clk 0:02:49]} 6... Rc8 {[%clk 0:02:44.5]} 7.
dxc5 {[%clk 0:02:48.1]} 7... Bxc5 {[%clk 0:02:39.3]} 8. O-O {[%clk 0:02:48]}
8... f6 {[%clk 0:02:35.5]} 9. Nh4 {[%clk 0:02:46.2]} 9... Nxe5 {[%clk
0:02:30.3]} 10. Qh5+ {[%clk 0:02:44.7]} 10... Kf8 {[%clk 0:02:25.4]} 11. Be2
{[%clk 0:02:43.2]} 11... Be8 {[%clk 0:02:20]} 12. Ng6+ {[%clk 0:02:24]} 12...
Bxg6 {[%clk 0:02:18.4]} 13. Qh4 {[%clk 0:02:23.9]} 13... Ne7 {[%clk 0:02:15.7]}
14. Kh1 {[%clk 0:02:20.9]} 14... Nf5 {[%clk 0:02:15.1]} 15. Qh3 {[%clk
0:02:21.2]} 15... Bf7 {[%clk 0:02:07.4]} 16. f4 {[%clk 0:02:21.1]} 16... Ng6
{[%clk 0:02:06.5]} 17. g4 {[%clk 0:02:21.2]} 17... Nd6 {[%clk 0:02:05.6]} 18. f5
{[%clk 0:02:19.3]} 18... exf5 {[%clk 0:02:05.8]} 19. gxf5 {[%clk 0:02:19.5]}
19... Ne5 {[%clk 0:02:06.3]} 20. Bf4 {[%clk 0:02:15]} 20... d4 {[%clk
0:01:51.7]} 21. b4 {[%clk 0:02:10.6]} 21... Bb6 {[%clk 0:01:45.9]} 22. a4 {[%clk
0:01:54.2]} 22... Ndc4 {[%clk 0:01:35.8]} 23. a5 {[%clk 0:01:34.7]} 23... Bd5+
{[%clk 0:01:35.2]} 24. Kg1 {[%clk 0:01:34.1]} 24... d3+ {[%clk 0:01:28.9]} 25.
axb6 {[%clk 0:01:31.9]} 25... Qxb6+ {[%clk 0:01:28.7]} 26. Rf2 {[%clk
0:01:29.2]} 26... dxe2 {[%clk 0:01:27.4]} 27. Nd2 {[%clk 0:01:26.6]} 27... Nxd2
{[%clk 0:01:14.6]} 28. Bxd2 {[%clk 0:01:25.7]} 28... Nf3+ {[%clk 0:01:14]} 0-1

[Event "Early-Titled-Tuesday-Blitz-February-27-2024"]
[Site "Chess.com"]
[Date "2024.02.27"]
[Round "8"]
[White "Let_it_be_1"]
[Black "Rosh1610"]
[Result "1-0"]
[WhiteElo "2553"]
[BlackElo "2426"]
[TimeControl "180+1"]
[EndTime "9:25:12 PST"]
[Termination "Let_it_be_1 won by resignation"]

1. e4 {[%clk 0:02:57.8]} 1... e6 {[%clk 0:02:59.1]} 2. d4 {[%clk 0:02:57.4]}
2... d5 {[%clk 0:02:59.4]} 3. Nd2 {[%clk 0:02:57.6]} 3... Nf6 {[%clk 0:02:58.3]}
4. e5 {[%clk 0:02:57.7]} 4... Nfd7 {[%clk 0:02:58.9]} 5. Bd3 {[%clk 0:02:58]}
5... c5 {[%clk 0:02:59.5]} 6. c3 {[%clk 0:02:58.3]} 6... Nc6 {[%clk 0:02:59.9]}
7. Ne2 {[%clk 0:02:58.6]} 7... Be7 {[%clk 0:02:58.6]} 8. Nf3 {[%clk 0:02:55.8]}
8... Qb6 {[%clk 0:02:16.3]} 9. O-O {[%clk 0:02:52.9]} 9... h6 {[%clk 0:02:10.9]}
10. a3 {[%clk 0:02:50.4]} 10... O-O {[%clk 0:02:00.3]} 11. b4 {[%clk 0:02:49.7]}
11... c4 {[%clk 0:02:00.1]} 12. Bc2 {[%clk 0:02:40.2]} 12... a5 {[%clk
0:01:57.6]} 13. Be3 {[%clk 0:02:36.1]} 13... axb4 {[%clk 0:01:30.5]} 14. axb4
{[%clk 0:02:35.7]} 14... Rxa1 {[%clk 0:01:30.1]} 15. Qxa1 {[%clk 0:02:35.5]}
15... Na7 {[%clk 0:01:30.7]} 16. Qc1 {[%clk 0:02:31.2]} 16... Nb5 {[%clk
0:01:31.1]} 17. Bxh6 {[%clk 0:02:25.5]} 17... gxh6 {[%clk 0:01:30.6]} 18. Qxh6
{[%clk 0:02:24.7]} 18... f5 {[%clk 0:01:31.1]} 19. Qg6+ {[%clk 0:01:59.3]} 19...
Kh8 {[%clk 0:01:30.1]} 20. Nf4 {[%clk 0:01:58]} 20... Nc7 {[%clk 0:01:27.7]} 21.
Qh6+ {[%clk 0:01:37.9]} 21... Kg8 {[%clk 0:01:24.9]} 22. Ng6 {[%clk 0:01:38.2]}
22... Bxb4 {[%clk 0:01:14.1]} 23. Ng5 {[%clk 0:01:19.3]} 1-0

[Event "Early-Titled-Tuesday-Blitz-February-27-2024"]
[Site "Chess.com"]
[Date "2024.02.27"]
[Round "8"]
[White "AniJak"]
[Black "Actuary44"]
[Result "0-1"]
[WhiteElo "2372"]
[BlackElo "2522"]
[TimeControl "180+1"]
[EndTime "9:25:22 PST"]
[Termination "Actuary44 won by resignation"]

1. e4 {[%clk 0:03:00.9]} 1... b6 {[%clk 0:02:59.9]} 2. d4 {[%clk 0:03:00.1]}
2... Bb7 {[%clk 0:03:00.5]} 3. Nc3 {[%clk 0:03:00.2]} 3... e6 {[%clk 0:03:01.1]}
4. Bd3 {[%clk 0:02:59.4]} 4... Nf6 {[%clk 0:03:01.7]} 5. Qe2 {[%clk 0:02:58.4]}
5... d5 {[%clk 0:03:02.2]} 6. e5 {[%clk 0:02:52.3]} 6... Nfd7 {[%clk 0:03:02.5]}
7. Nd1 {[%clk 0:02:37.6]} 7... c5 {[%clk 0:03:02.7]} 8. c3 {[%clk 0:02:38]} 8...
Nc6 {[%clk 0:03:03]} 9. Nf3 {[%clk 0:02:36.2]} 9... Qc7 {[%clk 0:03:03.2]} 10.
O-O {[%clk 0:02:35.2]} 10... h6 {[%clk 0:03:03.7]} 11. Be3 {[%clk 0:02:26.6]}
11... O-O-O {[%clk 0:03:04]} 12. a4 {[%clk 0:02:25.8]} 12... f5 {[%clk
0:03:03.5]} 13. exf6 {[%clk 0:02:21.9]} 13... gxf6 {[%clk 0:03:04.4]} 14. dxc5
{[%clk 0:02:20.8]} 14... bxc5 {[%clk 0:03:04.3]} 15. Ba6 {[%clk 0:02:10.4]}
15... e5 {[%clk 0:03:04.4]} 16. b4 {[%clk 0:02:06.3]} 16... c4 {[%clk
0:03:03.3]} 17. Bxb7+ {[%clk 0:02:05.3]} 17... Kxb7 {[%clk 0:02:57.8]} 18. a5
{[%clk 0:02:02]} 18... a6 {[%clk 0:02:53.8]} 19. b5 {[%clk 0:02:01.5]} 19...
axb5 {[%clk 0:02:52.1]} 20. a6+ {[%clk 0:01:58]} 20... Ka8 {[%clk 0:02:51.3]}
21. Nh4 {[%clk 0:01:45.4]} 21... d4 {[%clk 0:02:42.8]} 22. cxd4 {[%clk 0:01:29]}
22... exd4 {[%clk 0:02:43.7]} 23. Ng6 {[%clk 0:01:22.4]} 23... Rg8 {[%clk
0:02:27]} 24. Bf4 {[%clk 0:01:21.6]} 24... Bd6 {[%clk 0:02:23.5]} 25. Bxd6
{[%clk 0:00:57.4]} 25... Qxd6 {[%clk 0:02:24.4]} 26. Nh4 {[%clk 0:00:57.5]}
26... Qd5 {[%clk 0:02:24.3]} 27. Rb1 {[%clk 0:00:50.9]} 27... Rde8 {[%clk
0:02:21]} 28. Qb2 {[%clk 0:00:42.4]} 28... Re4 {[%clk 0:02:19]} 29. Nf3 {[%clk
0:00:38.6]} 29... b4 {[%clk 0:02:16.4]} 30. Qd2 {[%clk 0:00:33.5]} 30... Reg4
{[%clk 0:02:14.1]} 31. Ne3 {[%clk 0:00:32.4]} 31... Rxg2+ {[%clk 0:02:10.6]} 32.
Nxg2 {[%clk 0:00:26.6]} 32... Qxf3 {[%clk 0:02:11.5]} 0-1

[Event "Early-Titled-Tuesday-Blitz-February-27-2024"]
[Site "Chess.com"]
[Date "2024.02.27"]
[Round "8"]
[White "ImportedItalianMaple"]
[Black "sokidze"]
[Result "0-1"]
[WhiteElo "2549"]
[BlackElo "2768"]
[TimeControl "180+1"]
[EndTime "9:25:29 PST"]
[Termination "sokidze won by resignation"]

1. Nf3 {[%clk 0:03:00.9]} 1... d5 {[%clk 0:02:58.9]} 2. g3 {[%clk 0:03:01.2]}
2... Nf6 {[%clk 0:02:58]} 3. Bg2 {[%clk 0:03:01.6]} 3... e6 {[%clk 0:02:58.3]}
4. O-O {[%clk 0:03:01.7]} 4... Be7 {[%clk 0:02:59]} 5. c4 {[%clk 0:03:02.3]}
5... O-O {[%clk 0:02:59.4]} 6. b3 {[%clk 0:03:02.7]} 6... d4 {[%clk 0:02:58.1]}
7. Bb2 {[%clk 0:03:00.5]} 7... c5 {[%clk 0:02:58.7]} 8. e3 {[%clk 0:03:00]} 8...
Nc6 {[%clk 0:02:58.7]} 9. exd4 {[%clk 0:02:57.8]} 9... cxd4 {[%clk 0:02:59.6]}
10. Re1 {[%clk 0:02:58.1]} 10... Re8 {[%clk 0:02:38.9]} 11. Ne5 {[%clk
0:02:53.6]} 11... Nxe5 {[%clk 0:02:34.6]} 12. Rxe5 {[%clk 0:02:54.1]} 12... Bd6
{[%clk 0:02:35.2]} 13. Rb5 {[%clk 0:02:51]} 13... a6 {[%clk 0:02:32.8]} 14. Rg5
{[%clk 0:02:43.8]} 14... h6 {[%clk 0:02:30.6]} 15. Rh5 {[%clk 0:02:30.6]} 15...
Nxh5 {[%clk 0:02:17.2]} 16. Qxh5 {[%clk 0:02:31.5]} 16... e5 {[%clk 0:02:16.9]}
17. d3 {[%clk 0:02:29.2]} 17... Qg5 {[%clk 0:02:08.3]} 18. Qe2 {[%clk
0:02:26.9]} 18... Bg4 {[%clk 0:02:00.5]} 19. Qe1 {[%clk 0:02:24.3]} 19... Re7
{[%clk 0:01:55]} 20. Nd2 {[%clk 0:02:24]} 20... Bb4 {[%clk 0:01:55.2]} 21. Bc1
{[%clk 0:02:20.1]} 21... Bc3 {[%clk 0:01:41.4]} 22. Rb1 {[%clk 0:02:19.7]} 22...
Bf5 {[%clk 0:01:32.4]} 23. h4 {[%clk 0:02:11]} 23... Qg6 {[%clk 0:01:30.7]} 24.
Ba3 {[%clk 0:02:06.3]} 24... Ree8 {[%clk 0:01:21.1]} 25. Bxb7 {[%clk 0:01:50.2]}
25... Rab8 {[%clk 0:01:21.2]} 26. Be4 {[%clk 0:01:44.5]} 26... Bxe4 {[%clk
0:01:18.5]} 27. dxe4 {[%clk 0:01:45.4]} 27... Bxd2 {[%clk 0:01:18.6]} 28. Qxd2
{[%clk 0:01:46.3]} 28... Qxe4 {[%clk 0:01:19]} 29. Re1 {[%clk 0:01:46.8]} 29...
Qc6 {[%clk 0:01:17.1]} 30. c5 {[%clk 0:01:25.7]} 30... Rbd8 {[%clk 0:01:16.8]}
31. b4 {[%clk 0:01:22.3]} 31... e4 {[%clk 0:01:16.4]} 32. Bb2 {[%clk 0:01:21.9]}
32... e3 {[%clk 0:01:10.7]} 33. Qd3 {[%clk 0:01:21.4]} 33... exf2+ {[%clk
0:01:09.3]} 34. Kxf2 {[%clk 0:01:22.3]} 34... Qf6+ {[%clk 0:01:08.2]} 0-1

[Event "Early-Titled-Tuesday-Blitz-February-27-2024"]
[Site "Chess.com"]
[Date "2024.02.27"]
[Round "8"]
[White "pr1105"]
[Black "Mesa_1"]
[Result "0-1"]
[WhiteElo "2323"]
[BlackElo "2503"]
[TimeControl "180+1"]
[EndTime "9:25:48 PST"]
[Termination "Mesa_1 won by resignation"]

1. e4 {[%clk 0:02:51.6]} 1... c5 {[%clk 0:02:57.7]} 2. Nf3 {[%clk 0:02:48.8]}
2... e6 {[%clk 0:02:58.2]} 3. d4 {[%clk 0:02:46.6]} 3... cxd4 {[%clk 0:02:59.1]}
4. Nxd4 {[%clk 0:02:47.5]} 4... a6 {[%clk 0:02:59.6]} 5. c4 {[%clk 0:02:47.6]}
5... Nf6 {[%clk 0:03:00]} 6. Nc3 {[%clk 0:02:47.8]} 6... Bb4 {[%clk 0:03:00.7]}
7. Qd3 {[%clk 0:02:46]} 7... Qc7 {[%clk 0:02:55.4]} 8. Be2 {[%clk 0:02:26.2]}
8... Bxc3+ {[%clk 0:02:45.4]} 9. bxc3 {[%clk 0:02:05.5]} 9... d6 {[%clk
0:02:43.8]} 10. O-O {[%clk 0:02:02.7]} 10... Nbd7 {[%clk 0:02:44]} 11. Qg3
{[%clk 0:01:56.6]} 11... O-O {[%clk 0:02:43.7]} 12. Bh6 {[%clk 0:01:49.2]} 12...
Ne8 {[%clk 0:02:37.9]} 13. Be3 {[%clk 0:01:49.2]} 13... b6 {[%clk 0:02:37]} 14.
f4 {[%clk 0:01:40.4]} 14... Bb7 {[%clk 0:02:36.5]} 15. Bd3 {[%clk 0:01:40.5]}
15... Nef6 {[%clk 0:02:33.4]} 16. e5 {[%clk 0:01:02.8]} 16... dxe5 {[%clk
0:02:34.3]} 17. fxe5 {[%clk 0:01:03.2]} 17... Qxe5 {[%clk 0:02:33.6]} 18. Bf4
{[%clk 0:01:03.1]} 18... Qh5 {[%clk 0:02:34.3]} 19. Rae1 {[%clk 0:00:50.4]}
19... Rfe8 {[%clk 0:02:24.2]} 20. Nf3 {[%clk 0:00:45.3]} 20... Nc5 {[%clk
0:02:03.8]} 21. Ne5 {[%clk 0:00:22.5]} 21... Nxd3 {[%clk 0:01:58.8]} 22. Qxd3
{[%clk 0:00:22.7]} 22... Rad8 {[%clk 0:01:56.8]} 23. Qg3 {[%clk 0:00:23.1]}
23... Ne4 {[%clk 0:01:51.9]} 24. Rxe4 {[%clk 0:00:17.9]} 24... Bxe4 {[%clk
0:01:51.2]} 25. Bg5 {[%clk 0:00:18.8]} 25... Rd1 {[%clk 0:01:43.2]} 26. Ng4
{[%clk 0:00:06.6]} 26... Rxf1+ {[%clk 0:01:39.6]} 0-1

[Event "Early-Titled-Tuesday-Blitz-February-27-2024"]
[Site "Chess.com"]
[Date "2024.02.27"]
[Round "8"]
[White "Atousa"]
[Black "betta2004"]
[Result "0-1"]
[WhiteElo "2470"]
[BlackElo "2591"]
[TimeControl "180+1"]
[EndTime "9:25:49 PST"]
[Termination "betta2004 won on time"]

1. e4 {[%clk 0:02:54.4]} 1... e5 {[%clk 0:02:58]} 2. Nf3 {[%clk 0:02:54.6]} 2...
Nf6 {[%clk 0:02:58.3]} 3. Nxe5 {[%clk 0:02:53.8]} 3... Nc6 {[%clk 0:02:58.2]} 4.
Nf3 {[%clk 0:02:54.5]} 4... Nxe4 {[%clk 0:02:57]} 5. Nc3 {[%clk 0:02:54.5]} 5...
d5 {[%clk 0:02:55.8]} 6. d3 {[%clk 0:02:51.6]} 6... Nxc3 {[%clk 0:02:52.7]} 7.
bxc3 {[%clk 0:02:52.5]} 7... Bd6 {[%clk 0:02:53]} 8. Be2 {[%clk 0:02:52.7]} 8...
O-O {[%clk 0:02:53.1]} 9. O-O {[%clk 0:02:53]} 9... Bg4 {[%clk 0:02:53.7]} 10.
h3 {[%clk 0:02:53.1]} 10... Bh5 {[%clk 0:02:50.7]} 11. Rb1 {[%clk 0:02:53.4]}
11... b6 {[%clk 0:02:50.7]} 12. Nd4 {[%clk 0:02:53.7]} 12... Bxe2 {[%clk
0:02:46.7]} 13. Qxe2 {[%clk 0:02:51.1]} 13... Nxd4 {[%clk 0:02:45.5]} 14. cxd4
{[%clk 0:02:52]} 14... Qf6 {[%clk 0:02:45.9]} 15. Be3 {[%clk 0:02:47.9]} 15...
Rfe8 {[%clk 0:02:45.8]} 16. Qh5 {[%clk 0:02:42.8]} 16... c6 {[%clk 0:02:43.5]}
17. c4 {[%clk 0:02:42.6]} 17... Rad8 {[%clk 0:02:39.9]} 18. cxd5 {[%clk
0:02:34.9]} 18... cxd5 {[%clk 0:02:40.8]} 19. Kh1 {[%clk 0:02:24.8]} 19... Bf4
{[%clk 0:02:40.4]} 20. Qf3 {[%clk 0:02:19.2]} 20... Bxe3 {[%clk 0:02:37.9]} 21.
fxe3 {[%clk 0:02:10.3]} 21... Qg6 {[%clk 0:02:34.2]} 22. Rbc1 {[%clk 0:02:03.7]}
22... Rd7 {[%clk 0:02:31.8]} 23. Rc3 {[%clk 0:01:48.4]} 23... h6 {[%clk
0:02:23.4]} 24. Rfc1 {[%clk 0:01:44.2]} 24... Re6 {[%clk 0:02:21.8]} 25. Kh2
{[%clk 0:01:33.1]} 25... Rf6 {[%clk 0:02:21.5]} 26. Qg3 {[%clk 0:01:33.4]} 26...
Re7 {[%clk 0:02:11.7]} 27. Qb8+ {[%clk 0:01:09.3]} 27... Kh7 {[%clk 0:02:10.9]}
28. Rc8 {[%clk 0:01:09.3]} 28... Qg5 {[%clk 0:02:10.2]} 29. Rh8+ {[%clk
0:01:08.3]} 29... Kg6 {[%clk 0:02:10.3]} 30. e4 {[%clk 0:00:39]} 30... Qxc1
{[%clk 0:02:06]} 31. Qg8 {[%clk 0:00:14.8]} 31... Rf1 {[%clk 0:02:01.2]} 32.
Qh7+ {[%clk 0:00:13.5]} 32... Kh5 {[%clk 0:01:56.9]} 33. Qxg7 {[%clk 0:00:04.2]}
33... Qf4+ {[%clk 0:01:55.9]} 0-1

[Event "Early-Titled-Tuesday-Blitz-February-27-2024"]
[Site "Chess.com"]
[Date "2024.02.27"]
[Round "8"]
[White "santosalberto1987"]
[Black "elchacal664"]
[Result "1-0"]
[WhiteElo "2548"]
[BlackElo "2413"]
[TimeControl "180+1"]
[EndTime "9:25:50 PST"]
[Termination "santosalberto1987 won by resignation"]

1. e4 {[%clk 0:03:00.9]} 1... c5 {[%clk 0:02:57.8]} 2. Nf3 {[%clk 0:03:00.8]}
2... d6 {[%clk 0:02:57.8]} 3. Bb5+ {[%clk 0:03:00.9]} 3... Nd7 {[%clk
0:02:54.4]} 4. d4 {[%clk 0:03:00.5]} 4... cxd4 {[%clk 0:02:53]} 5. Qxd4 {[%clk
0:03:01.4]} 5... a6 {[%clk 0:02:51.5]} 6. Bxd7+ {[%clk 0:03:01.5]} 6... Bxd7
{[%clk 0:02:50.8]} 7. Nc3 {[%clk 0:03:02.4]} 7... e6 {[%clk 0:02:46.7]} 8. Bg5
{[%clk 0:03:01.9]} 8... Qa5 {[%clk 0:02:36.8]} 9. O-O-O {[%clk 0:02:58.4]} 9...
e5 {[%clk 0:02:19.4]} 10. Qd3 {[%clk 0:02:47]} 10... Be6 {[%clk 0:02:14.5]} 11.
Kb1 {[%clk 0:02:45.5]} 11... Rc8 {[%clk 0:02:07.9]} 12. Nd5 {[%clk 0:02:36]}
12... Ne7 {[%clk 0:01:50.5]} 13. a3 {[%clk 0:02:07.7]} 13... Bxd5 {[%clk
0:01:38]} 14. exd5 {[%clk 0:02:08.6]} 14... Ng6 {[%clk 0:01:37.8]} 15. h4 {[%clk
0:02:05.4]} 15... h6 {[%clk 0:01:15.5]} 16. h5 {[%clk 0:02:04.9]} 16... Ne7
{[%clk 0:01:06.5]} 17. Bh4 {[%clk 0:01:59.8]} 17... f5 {[%clk 0:00:47.9]} 18.
Nxe5 {[%clk 0:01:50]} 18... dxe5 {[%clk 0:00:37]} 19. d6 {[%clk 0:01:50]} 19...
Rd8 {[%clk 0:00:32.8]} 20. d7+ {[%clk 0:01:17.3]} 20... Kf7 {[%clk 0:00:32.2]}
21. Qb3+ {[%clk 0:01:16.7]} 1-0

[Event "Early-Titled-Tuesday-Blitz-February-27-2024"]
[Site "Chess.com"]
[Date "2024.02.27"]
[Round "8"]
[White "Statham_01"]
[Black "esrosenberg"]
[Result "1-0"]
[WhiteElo "2564"]
[BlackElo "2424"]
[TimeControl "180+1"]
[EndTime "9:25:54 PST"]
[Termination "Statham_01 won by resignation"]

1. e4 {[%clk 0:03:00.9]} 1... e6 {[%clk 0:02:59.4]} 2. Qe2 {[%clk 0:02:59.9]}
2... c5 {[%clk 0:02:58.7]} 3. c3 {[%clk 0:03:00.1]} 3... Nc6 {[%clk 0:02:55.8]}
4. Nf3 {[%clk 0:02:59.8]} 4... d5 {[%clk 0:02:54.2]} 5. exd5 {[%clk 0:02:57.4]}
5... Qxd5 {[%clk 0:02:54.1]} 6. Na3 {[%clk 0:02:57.7]} 6... a6 {[%clk
0:02:52.2]} 7. Nc4 {[%clk 0:02:57.9]} 7... Nf6 {[%clk 0:02:52.2]} 8. Nb6 {[%clk
0:02:57.6]} 8... Qd8 {[%clk 0:02:50]} 9. Nxa8 {[%clk 0:02:57.8]} 9... Bd6 {[%clk
0:02:50.9]} 10. d4 {[%clk 0:02:50.4]} 10... Bd7 {[%clk 0:02:48.3]} 11. dxc5
{[%clk 0:02:44.2]} 11... Bxc5 {[%clk 0:02:49.2]} 12. Qc4 {[%clk 0:02:33.8]}
12... Ba7 {[%clk 0:02:44.3]} 13. Bg5 {[%clk 0:02:24.1]} 13... Qxa8 {[%clk
0:02:42.2]} 14. O-O-O {[%clk 0:02:23.8]} 14... Nd5 {[%clk 0:02:26.6]} 15. Bd3
{[%clk 0:02:11.9]} 15... O-O {[%clk 0:02:23]} 16. Qh4 {[%clk 0:02:07.5]} 16...
f5 {[%clk 0:02:14.2]} 17. g4 {[%clk 0:01:59]} 17... Qc8 {[%clk 0:02:03.5]} 18.
gxf5 {[%clk 0:01:57.4]} 18... exf5 {[%clk 0:02:04]} 19. Bc4 {[%clk 0:01:55.8]}
19... Be6 {[%clk 0:02:01.6]} 20. Bxd5 {[%clk 0:01:46.6]} 20... Bxd5 {[%clk
0:02:02]} 21. Rxd5 {[%clk 0:01:47.5]} 21... a5 {[%clk 0:01:48]} 22. Kb1 {[%clk
0:01:41]} 22... Qe6 {[%clk 0:01:45.6]} 23. Rdd1 {[%clk 0:01:35]} 23... h6 {[%clk
0:01:44.8]} 24. Be3 {[%clk 0:01:26.1]} 24... Bxe3 {[%clk 0:01:40.1]} 25. fxe3
{[%clk 0:01:27]} 25... Qxe3 {[%clk 0:01:40.7]} 26. Nd4 {[%clk 0:01:26.5]} 26...
f4 {[%clk 0:01:34.2]} 27. Rhe1 {[%clk 0:01:21.3]} 27... g5 {[%clk 0:01:15.4]}
28. Qxh6 {[%clk 0:01:13.7]} 28... Qf2 {[%clk 0:01:16]} 29. Qg6+ {[%clk
0:01:10.5]} 29... Kh8 {[%clk 0:01:16.2]} 30. Qh6+ {[%clk 0:01:02.2]} 30... Kg8
{[%clk 0:01:16.3]} 31. Qxg5+ {[%clk 0:01:02.8]} 31... Kh7 {[%clk 0:01:16.3]} 32.
Qh5+ {[%clk 0:01:03.1]} 32... Kg7 {[%clk 0:01:16.8]} 33. Rg1+ {[%clk 0:01:01]}
33... Kf6 {[%clk 0:01:17.2]} 34. Qf5+ {[%clk 0:01:00.9]} 34... Ke7 {[%clk
0:01:17.5]} 35. Nxc6+ {[%clk 0:00:58.3]} 35... bxc6 {[%clk 0:01:17.4]} 36. Rg7+
{[%clk 0:00:57.1]} 1-0